bitfinex/quotes_BTCUSD_20230906
["timestamp","ask_amount","ask_price","bid_price","bid_amount"]
[1693996243088,3.42762119,25771.0,25770.0,0.003]
[1693996243288,3.2881722,25771.0,25770.0,0.003]
[1693996243488,3.2882922,25771.0,25770.0,0.003]
[1693996243688,3.42798119,25771.0,25770.0,0.003]
[1693996243889,3.12786119,25771.0,25770.0,0.003]
[1693996244092,3.2873922,25771.0,25770.0,0.003]
[1693996244427,3.2858922,25771.0,25770.0,0.003]
[1693996244636,3.2858322,25771.0,25770.0,0.003]
[1693996244836,3.39295575,25771.0,25770.0,0.003]
[1693996245035,3.39163575,25771.0,25770.0,0.003]
[1693996245236,3.39241575,25771.0,25770.0,0.003]
[1693996245436,3.39229575,25771.0,25770.0,0.003]
[1693996245661,3.39193575,25771.0,25770.0,0.003]
[1693996245815,3.39127575,25771.0,25770.0,0.003]
[1693996246018,3.39163575,25771.0,25770.0,0.003]
[1693996246223,3.39253575,25771.0,25770.0,0.003]
[1693996246423,3.36941575,25771.0,25770.0,0.003]
[1693996246625,3.36905575,25771.0,25770.0,0.003]
[1693996246844,3.39193575,25771.0,25770.0,0.003]
[1693996246981,3.39133575,25771.0,25770.0,0.003]
[1693996247377,3.09127575,25771.0,25770.0,0.003]
[1693996247585,3.39115575,25771.0,25770.0,0.003]
[1693996247766,3.39085575,25771.0,25770.0,0.003]
[1693996248005,3.09079575,25771.0,25770.0,0.003]
[1693996248207,3.39067575,25771.0,25770.0,0.003]
[1693996248385,3.39061575,25771.0,25770.0,0.003]
[1693996248587,3.39049575,25771.0,25770.0,0.00341812]
[1693996248789,3.39043575,25771.0,25770.0,0.00341812]
[1693996248987,3.39499575,25771.0,25770.0,0.00341812]
[1693996249195,3.39385575,25771.0,25770.0,0.00341812]
[1693996249391,3.39373575,25771.0,25770.0,0.00341812]
[1693996249594,3.39361575,25771.0,25770.0,0.003]
[1693996249751,3.39349575,25771.0,25770.0,0.003]
[1693996249952,3.39343575,25771.0,25770.0,0.003]
[1693996250169,3.39583575,25771.0,25770.0,0.003]
[1693996250347,3.39421575,25771.0,25770.0,0.003]
[1693996250563,3.39301575,25771.0,25770.0,0.003]
[1693996250793,3.39295575,25771.0,25770.0,0.003]
[1693996250971,3.3318352,25771.0,25770.0,0.003]
[1693996251171,3.3923556,25771.0,25770.0,0.003]
[1693996251634,3.3314752,25771.0,25770.0,0.003]
[1693996251802,3.3312952,25771.0,25770.0,0.003]
[1693996252005,3.3311752,25771.0,25770.0,0.003]
[1693996252529,3.3311152,25771.0,25770.0,0.003]
[1693996252724,3.3310552,25771.0,25770.0,0.003]
[1693996253080,3.3323152,25771.0,25770.0,0.003]
[1693996253269,3.4516152,25771.0,25770.0,0.003]
[1693996253468,3.4460352,25771.0,25770.0,0.003]
[1693996254026,3.4459752,25771.0,25770.0,0.003]
[1693996254267,3.4459152,25771.0,25770.0,0.003]
[1693996254431,3.4460952,25771.0,25770.0,0.003]
[1693996254975,3.4459752,25771.0,25770.0,0.003]
[1693996255180,3.4433352,25771.0,25770.0,0.003]
[1693996255479,3.4433952,25771.0,25770.0,0.003]
[1693996255684,3.4433952,25771.0,25770.0,0.00341812]
[1693996255881,3.4435752,25771.0,25770.0,0.00341812]
[1693996256042,3.4435152,25771.0,25770.0,0.00341812]
[1693996256641,3.4396152,25771.0,25770.0,0.00341812]
[1693996256846,3.4383552,25771.0,25770.0,0.00341812]
[1693996257065,3.4390152,25771.0,25770.0,0.00341812]
[1693996257242,3.4402152,25771.0,25770.0,0.00341812]
[1693996257471,3.4401552,25771.0,25770.0,0.00341812]
[1693996257687,3.4402752,25771.0,25770.0,0.00341812]
[1693996257863,3.4402152,25771.0,25770.0,0.00341812]
[1693996258094,3.53352543,25771.0,25770.0,0.00341812]
[1693996258303,3.4417752,25771.0,25770.0,0.00341812]
[1693996258502,3.4414152,25771.0,25770.0,0.00341812]
[1693996258699,3.5341254,25771.0,25770.0,0.00341812]
[1693996258933,3.5324454,25771.0,25770.0,0.00341812]
[1693996259131,3.3720552,25771.0,25770.0,0.00341812]
[1693996259312,3.4652449,25771.0,25770.0,0.00341812]
[1693996259714,3.3720552,25771.0,25770.0,0.00341812]
[1693996259939,3.46524465,25771.0,25770.0,0.00341812]
[1693996260799,3.3720552,25771.0,25770.0,0.00341812]
[1693996261245,3.43275583,25771.0,25770.0,0.00341812]
[1693996261701,3.4652441,25771.0,25770.0,0.00341812]
[1693996262332,3.32543511,25771.0,25770.0,0.00341812]
[1693996265446,3.4652441,25771.0,25770.0,0.00341812]
[1693996265655,3.32543511,25771.0,25770.0,0.00341812]
[1693996266068,3.4652441,25771.0,25770.0,0.00341812]
[1693996266230,3.3720552,25771.0,25770.0,0.00341812]
[1693996266430,3.43275662,25771.0,25770.0,0.00341812]
[1693996268030,3.61916861,25771.0,25770.0,0.00341812]
[1693996268582,3.43275662,25771.0,25770.0,0.00341812]
[1693996269436,3.43275662,25771.0,25770.0,0.03490706]
[1693996269638,3.43275662,25771.0,25770.0,0.00341812]
[1693996271366,3.50578339,25771.0,25770.0,0.00341812]
[1693996271559,3.57118339,25771.0,25770.0,0.00341812]
[1693996271881,3.57136339,25771.0,25770.0,0.03490706]
[1693996272177,3.57124339,25771.0,25770.0,0.00341812]
[1693996272354,3.57136339,25771.0,25770.0,0.00341812]
[1693996272554,3.57142339,25771.0,25770.0,0.00341812]
[1693996272756,3.57154339,25771.0,25770.0,0.00341812]
[1693996272965,3.57148339,25771.0,25770.0,0.00341812]
[1693996273196,3.45104339,25771.0,25770.0,0.00341812]
[1693996273351,3.45116339,25771.0,25770.0,0.00341812]
[1693996273602,3.45140339,25771.0,25770.0,0.00341812]
[1693996273749,3.45128339,25771.0,25770.0,0.00341812]
[1693996273953,3.45140339,25771.0,25770.0,0.00341812]
[1693996274157,3.45152339,25771.0,25770.0,0.00341812]
[1693996274498,3.45128339,25771.0,25770.0,0.00341812]
[1693996274704,3.45140339,25771.0,25770.0,0.00341812]
[1693996275055,3.45146339,25771.0,25770.0,0.00341812]
[1693996275258,3.45182339,25771.0,25770.0,0.00341812]
[1693996275675,3.45188339,25771.0,25770.0,0.00341812]
[1693996275872,3.45140339,25771.0,25770.0,0.00341812]
[1693996276066,3.45176339,25771.0,25770.0,0.00341812]
[1693996276262,3.45146339,25771.0,25770.0,0.00341812]
[1693996276628,3.45158339,25771.0,25770.0,0.00341812]
[1693996276815,3.63829538,25771.0,25770.0,0.00341812]
[1693996276944,3.63835538,25771.0,25770.0,0.00341812]
[1693996277144,3.63853538,25771.0,25770.0,0.00341812]
[1693996277568,3.63841538,25771.0,25770.0,0.00341812]
[1693996277935,3.57169538,25771.0,25770.0,0.00341812]
[1693996280375,3.38528339,25771.0,25770.0,0.00341812]
[1693996284572,3.38528339,25771.0,25770.0,0.03386367]
[1693996296795,3.57169538,25771.0,25770.0,0.03386367]
[1693996296986,3.31225662,25771.0,25770.0,0.03386367]
[1693996298103,3.57810285,25771.0,25770.0,0.03386367]
[1693996300007,3.39169086,25771.0,25770.0,0.03386367]
[1693996303636,3.39170078,25771.0,25770.0,0.03386367]
[1693996310581,3.57812599,25771.0,25770.0,0.03386367]
[1693996313556,3.64388599,25771.0,25770.0,0.03386367]
[1693996313778,3.64436599,25771.0,25770.0,0.03386367]
[1693996313978,3.64340599,25771.0,25770.0,0.03386367]
[1693996314154,3.57812599,25771.0,25770.0,0.03386367]
[1693996314372,3.56631175,25771.0,25770.0,0.03386367]
[1693996314563,3.56805175,25771.0,25770.0,0.03386367]
[1693996314721,3.56997175,25771.0,25770.0,0.03386367]
[1693996314922,3.57009175,25771.0,25770.0,0.03386367]
[1693996315121,3.56991175,25771.0,25770.0,0.03386367]
[1693996315382,3.56961175,25771.0,25770.0,0.03386367]
[1693996315586,3.56937175,25771.0,25770.0,0.03386367]
[1693996315794,3.56961175,25771.0,25770.0,0.03386367]
[1693996315966,3.56979175,25771.0,25770.0,0.03386367]
[1693996316185,3.56973175,25771.0,25770.0,0.03386367]
[1693996316356,3.56949175,25771.0,25770.0,0.03386367]
[1693996316558,3.57189175,25771.0,25770.0,0.03386367]
[1693996316756,3.43195284,25771.0,25770.0,0.03386367]
[1693996316957,3.43201284,25771.0,25770.0,0.03386367]
[1693996317158,3.43195284,25771.0,25770.0,0.03386367]
[1693996317344,3.43231284,25771.0,25770.0,0.03386367]
[1693996317546,3.43255284,25771.0,25770.0,0.03386367]
[1693996317845,3.43249284,25771.0,25770.0,0.03386367]
[1693996318040,3.43243284,25771.0,25770.0,0.03386367]
[1693996318246,3.43435284,25771.0,25770.0,0.03386367]
[1693996318446,3.43027284,25771.0,25770.0,0.03386367]
[1693996318657,3.43051284,25771.0,25770.0,0.03386367]
[1693996318862,3.43021284,25771.0,25770.0,0.03386367]
[1693996319271,3.42991284,25771.0,25770.0,0.03386367]
[1693996319495,3.42979284,25771.0,25770.0,0.03386367]
[1693996319700,3.42973284,25771.0,25770.0,0.03386367]
[1693996320102,3.42991284,25771.0,25770.0,0.03386367]
[1693996320503,3.43459284,25771.0,25770.0,0.03386367]
[1693996320709,3.43711284,25771.0,25770.0,0.03386367]
[1693996320912,3.43639284,25771.0,25770.0,0.03386367]
[1693996321144,3.43615284,25771.0,25770.0,0.03386367]
[1693996321351,3.43609284,25771.0,25770.0,0.03386367]
[1693996321591,3.43669284,25771.0,25770.0,0.03386367]
[1693996321797,3.43573284,25771.0,25770.0,0.03386367]
[1693996321948,3.43585284,25771.0,25770.0,0.03386367]
[1693996322148,3.43573284,25771.0,25770.0,0.03386367]
[1693996322360,3.43567284,25771.0,25770.0,0.03386367]
[1693996322566,3.43585284,25771.0,25770.0,0.03386367]
[1693996322763,3.43549284,25771.0,25770.0,0.03386367]
[1693996322985,3.43543284,25771.0,25770.0,0.03386367]
[1693996323189,3.43549284,25771.0,25770.0,0.03386367]
[1693996323400,3.43147284,25771.0,25770.0,0.03386367]
[1693996323573,3.43141284,25771.0,25770.0,0.03386367]
[1693996323768,3.43147284,25771.0,25770.0,0.03386367]
[1693996324000,3.43129284,25771.0,25770.0,0.03386367]
[1693996324174,3.43147284,25771.0,25770.0,0.03386367]
[1693996324379,3.43141284,25771.0,25770.0,0.03386367]
[1693996324582,3.43135284,25771.0,25770.0,0.03386367]
[1693996324840,3.43081284,25771.0,25770.0,0.03386367]
[1693996325042,3.43075284,25771.0,25770.0,0.03386367]
[1693996325246,3.43081284,25771.0,25770.0,0.03386367]
[1693996325467,3.43075284,25771.0,25770.0,0.03386367]
[1693996325671,3.43069284,25771.0,25770.0,0.03386367]
[1693996325849,3.43075284,25771.0,25770.0,0.03386367]
[1693996326068,3.43069284,25771.0,25770.0,0.03386367]
[1693996326424,3.43075284,25771.0,25770.0,0.03386367]
[1693996326629,3.43063284,25771.0,25770.0,0.03386367]
[1693996326834,3.43069284,25771.0,25770.0,0.03386367]
[1693996327039,3.43063284,25771.0,25770.0,0.03386367]
[1693996327395,3.43057284,25771.0,25770.0,0.03386367]
[1693996327588,3.43039284,25771.0,25770.0,0.03386367]
[1693996327824,3.43057284,25771.0,25770.0,0.03386367]
[1693996328034,3.43069284,25771.0,25770.0,0.03386367]
[1693996328244,3.43063284,25771.0,25770.0,0.03386367]
[1693996328464,3.43069284,25771.0,25770.0,0.03386367]
[1693996328656,3.43081284,25771.0,25770.0,0.03386367]
[1693996328775,3.43045284,25771.0,25770.0,0.03386367]
[1693996329177,3.43027284,25771.0,25770.0,0.03386367]
[1693996329379,3.47633915,25771.0,25770.0,0.03386367]
[1693996329582,3.66276828,25771.0,25770.0,0.03386367]
[1693996329812,3.66270828,25771.0,25770.0,0.03386367]
[1693996330023,3.66276828,25771.0,25770.0,0.03386367]
[1693996330228,3.66258828,25771.0,25770.0,0.03386367]
[1693996330476,3.66318828,25771.0,25770.0,0.03386367]
[1693996330882,3.66294828,25771.0,25770.0,0.03386367]
[1693996331057,3.66300828,25771.0,25770.0,0.03386367]
[1693996331258,3.66282828,25771.0,25770.0,0.03386367]
[1693996331491,3.66270828,25771.0,25770.0,0.03386367]
[1693996331838,3.66276828,25771.0,25770.0,0.03386367]
[1693996332042,3.66288828,25771.0,25770.0,0.03386367]
[1693996332218,3.66294828,25771.0,25770.0,0.03386367]
[1693996332881,3.66288828,25771.0,25770.0,0.03386367]
[1693996333082,3.66336828,25771.0,25770.0,0.03386367]
[1693996333434,3.66264828,25771.0,25770.0,0.03386367]
[1693996333666,3.66258828,25771.0,25770.0,0.03386367]
[1693996333868,3.66252828,25771.0,25770.0,0.03386367]
[1693996334267,3.66246828,25771.0,25770.0,0.03386367]
[1693996334429,3.66240828,25771.0,25770.0,0.03386367]
[1693996334625,3.66288828,25771.0,25770.0,0.03386367]
[1693996334861,3.66234828,25771.0,25770.0,0.03386367]
[1693996335023,3.66228828,25771.0,25770.0,0.03386367]
[1693996335226,3.66222828,25771.0,25770.0,0.03386367]
[1693996335427,3.42913676,25771.0,25770.0,0.03386367]
[1693996335630,3.42673676,25771.0,25770.0,0.03386367]
[1693996335828,3.42637676,25771.0,25770.0,0.03386367]
[1693996336204,3.42661676,25771.0,25770.0,0.03386367]
[1693996336410,3.42649676,25771.0,25770.0,0.03386367]
[1693996336729,3.42691676,25771.0,25770.0,0.03386367]
[1693996336925,3.42679676,25771.0,25770.0,0.03386367]
[1693996337114,3.42685676,25771.0,25770.0,0.03386367]
[1693996337327,3.42667676,25771.0,25770.0,0.03386367]
[1693996337532,3.42661676,25771.0,25770.0,0.03386367]
[1693996338388,3.42649676,25771.0,25770.0,0.03386367]
[1693996338671,3.42625676,25771.0,25770.0,0.03386367]
[1693996338867,3.42583676,25771.0,25770.0,0.03386367]
[1693996339226,3.42541676,25771.0,25770.0,0.03386367]
[1693996339427,3.42577676,25771.0,25770.0,0.03386367]
[1693996339637,3.42571676,25771.0,25770.0,0.03386367]
[1693996339817,3.42655676,25771.0,25770.0,0.03386367]
[1693996340012,3.42691676,25771.0,25770.0,0.03386367]
[1693996340219,3.42703676,25771.0,25770.0,0.03386367]
[1693996340461,3.42667676,25771.0,25770.0,0.03386367]
[1693996340925,3.42661676,25771.0,25770.0,0.03386367]
[1693996341151,3.42619676,25771.0,25770.0,0.03386367]
[1693996341326,3.42613676,25771.0,25770.0,0.03386367]
[1693996341528,3.42745676,25771.0,25770.0,0.03386367]
[1693996341728,3.42769676,25771.0,25770.0,0.03386367]
[1693996341959,3.42811676,25771.0,25770.0,0.03386367]
[1693996342095,3.42829676,25771.0,25770.0,0.03386367]
[1693996342437,3.43021676,25771.0,25770.0,0.03386367]
[1693996342596,3.43027676,25771.0,25770.0,0.03386367]
[1693996342794,3.43087676,25771.0,25770.0,0.03386367]
[1693996342998,3.43093676,25771.0,25770.0,0.00341812]
[1693996343209,3.43123676,25771.0,25770.0,0.00341812]
[1693996343380,3.43111676,25771.0,25770.0,0.00341812]
[1693996343585,3.43111676,25771.0,25770.0,0.003]
[1693996343826,3.43147676,25771.0,25770.0,0.003]
[1693996344029,3.43153676,25771.0,25770.0,0.003]
[1693996344231,3.43285676,25771.0,25770.0,0.003]
[1693996344548,3.43177676,25771.0,25770.0,0.003]
[1693996344754,3.43159676,25771.0,25770.0,0.003]
[1693996345036,3.43171676,25771.0,25770.0,0.003]
[1693996345236,3.43255676,25771.0,25770.0,0.003]
[1693996345420,3.43171676,25771.0,25770.0,0.003]
[1693996345567,3.43189676,25771.0,25770.0,0.003]
[1693996345911,3.43183676,25771.0,25770.0,0.003]
[1693996346115,3.43189676,25771.0,25770.0,0.003]
[1693996346355,3.43195676,25771.0,25770.0,0.0388855]
[1693996346557,3.43207676,25771.0,25770.0,0.003]
[1693996346731,3.43207676,25771.0,25770.0,0.00337845]
[1693996346732,3.43213676,25771.0,25770.0,0.00337845]
[1693996346891,3.43219676,25771.0,25770.0,0.00337845]
[1693996347093,3.43231676,25771.0,25770.0,0.00337845]
[1693996347312,3.43237676,25771.0,25770.0,0.00337845]
[1693996347512,3.43273676,25771.0,25770.0,0.00337845]
[1693996347714,3.43285676,25771.0,25770.0,0.003]
[1693996347893,3.43321676,25771.0,25770.0,0.03880868]
[1693996348099,3.43309676,25771.0,25770.0,0.03880868]
[1693996348416,3.43339676,25771.0,25770.0,0.03880868]
[1693996348797,3.43297676,25771.0,25770.0,0.03918713]
[1693996348983,3.43363676,25771.0,25770.0,0.03918713]
[1693996349297,3.43357676,25771.0,25770.0,0.03918713]
[1693996349500,3.43405676,25771.0,25770.0,0.03918713]
[1693996349711,3.43393676,25771.0,25770.0,0.03918713]
[1693996349892,3.43411676,25771.0,25770.0,0.03918713]
[1693996350088,3.43369676,25771.0,25770.0,0.03918713]
[1693996350292,3.44521676,25771.0,25770.0,0.03918713]
[1693996350519,3.44509676,25771.0,25770.0,0.03918713]
[1693996350671,3.44509676,25771.0,25770.0,0.03880868]
[1693996350872,3.44509676,25771.0,25770.0,0.003]
[1693996351203,3.44737676,25771.0,25770.0,0.003]
[1693996351385,3.57699676,25771.0,25770.0,0.003]
[1693996351596,3.80636828,25771.0,25770.0,0.003]
[1693996351748,3.80996828,25771.0,25770.0,0.003]
[1693996351954,3.80918828,25771.0,25770.0,0.003]
[1693996352347,3.80936828,25771.0,25770.0,0.003]
[1693996352555,3.80630828,25771.0,25770.0,0.003]
[1693996352759,3.80624828,25771.0,25770.0,0.003]
[1693996353163,3.80636828,25771.0,25770.0,0.003]
[1693996353438,3.80336828,25771.0,25770.0,0.003]
[1693996353649,3.80342828,25771.0,25770.0,0.003]
[1693996353805,3.80240828,25771.0,25770.0,0.003]
[1693996354007,3.80234828,25771.0,25770.0,0.003]
[1693996354279,3.80228828,25771.0,25770.0,0.003]
[1693996354460,3.80240828,25771.0,25770.0,0.003]
[1693996354656,3.80234828,25771.0,25770.0,0.003]
[1693996354865,3.80228828,25771.0,25770.0,0.003]
[1693996355157,3.80234828,25771.0,25770.0,0.003]
[1693996355362,3.80198828,25771.0,25770.0,0.003]
[1693996355571,3.80204828,25771.0,25770.0,0.003]
[1693996355795,3.80210828,25771.0,25770.0,0.003]
[1693996355997,3.80198828,25771.0,25770.0,0.003]
[1693996356137,3.80192828,25771.0,25770.0,0.003]
[1693996356364,3.80204828,25771.0,25770.0,0.003]
[1693996356558,3.80198828,25771.0,25770.0,0.003]
[1693996356761,3.61543915,25771.0,25770.0,0.003]
[1693996356960,3.61615915,25771.0,25770.0,0.003]
[1693996357282,3.61645915,25771.0,25770.0,0.003]
[1693996357625,3.52597915,25771.0,25770.0,0.003]
[1693996364455,3.5565894,25771.0,25770.0,0.003]
[1693996382422,3.52597915,25771.0,25770.0,0.003]
[1693996383058,3.52597915,25771.0,25770.0,0.03880868]
[1693996383697,3.52597915,25771.0,25770.0,0.03920743]
[1693996391949,3.61789915,25771.0,25770.0,0.03920743]
[1693996392082,3.61429915,25771.0,25770.0,0.03920743]
[1693996392288,3.52597915,25771.0,25770.0,0.03920743]
[1693996392498,3.61051915,25771.0,25770.0,0.03920743]
[1693996392744,3.61375915,25771.0,25770.0,0.03920743]
[1693996392913,3.61291915,25771.0,25770.0,0.03920743]
[1693996393119,3.60781915,25771.0,25770.0,0.03920743]
[1693996393319,3.60751915,25771.0,25770.0,0.03920743]
[1693996393497,3.60883915,25771.0,25770.0,0.03920743]
[1693996393708,3.60871915,25771.0,25770.0,0.03920743]
[1693996394115,3.60697915,25771.0,25770.0,0.03920743]
[1693996394314,3.60679915,25771.0,25770.0,0.03920743]
[1693996394446,3.60673915,25771.0,25770.0,0.03920743]
[1693996394632,3.60661915,25771.0,25770.0,0.03920743]
[1693996394832,3.60649915,25771.0,25770.0,0.03920743]
[1693996395078,3.60643915,25771.0,25770.0,0.03920743]
[1693996395233,3.60637915,25771.0,25770.0,0.03920743]
[1693996395445,3.60607915,25771.0,25770.0,0.03920743]
[1693996395809,3.60469915,25771.0,25770.0,0.03920743]
[1693996395948,3.60463915,25771.0,25770.0,0.03920743]
[1693996396356,3.60187915,25771.0,25770.0,0.03920743]
[1693996396557,3.59629915,25771.0,25770.0,0.03920743]
[1693996396779,3.52597915,25771.0,25770.0,0.03920743]
[1693996397133,3.60271915,25771.0,25770.0,0.03920743]
[1693996397456,3.60265915,25771.0,25770.0,0.03920743]
[1693996397853,3.60295915,25771.0,25770.0,0.03920743]
[1693996398063,3.60271915,25771.0,25770.0,0.03920743]
[1693996398509,3.60211915,25771.0,25770.0,0.03920743]
[1693996398720,3.60385915,25771.0,25770.0,0.03920743]
[1693996399043,3.60559915,25771.0,25770.0,0.03920743]
[1693996399267,3.60379915,25771.0,25770.0,0.03920743]
[1693996399454,3.60079915,25771.0,25770.0,0.03920743]
[1693996399747,3.60085915,25771.0,25770.0,0.03920743]
[1693996399953,3.60049915,25771.0,25770.0,0.03920743]
[1693996400107,3.36758763,25771.0,25770.0,0.03920743]
[1693996400324,3.36782763,25771.0,25770.0,0.03920743]
[1693996400696,3.36422763,25771.0,25770.0,0.03920743]
[1693996400901,3.29294763,25771.0,25770.0,0.03920743]
[1693996402376,3.36008763,25771.0,25770.0,0.03920743]
[1693996402529,3.29294763,25771.0,25770.0,0.03920743]
[1693996402730,3.36110763,25771.0,25770.0,0.03920743]
[1693996402909,3.36134763,25771.0,25770.0,0.03920743]
[1693996403123,3.36194763,25771.0,25770.0,0.03920743]
[1693996403318,3.36230763,25771.0,25770.0,0.03920743]
[1693996403655,3.29294763,25771.0,25770.0,0.03920743]
[1693996404223,3.35882763,25771.0,25770.0,0.03920743]
[1693996404477,3.29294763,25771.0,25770.0,0.03920743]
[1693996405020,3.35870763,25771.0,25770.0,0.03920743]
[1693996405349,3.35924763,25771.0,25770.0,0.03920743]
[1693996405533,3.36146763,25771.0,25770.0,0.03920743]
[1693996405768,3.59378849,25771.0,25770.0,0.03920743]
[1693996406030,3.59390849,25771.0,25770.0,0.03920743]
[1693996406251,3.59420849,25771.0,25770.0,0.03920743]
[1693996406430,3.59258849,25771.0,25770.0,0.03920743]
[1693996406631,3.59432849,25771.0,25770.0,0.03920743]
[1693996406838,3.59462849,25771.0,25770.0,0.03920743]
[1693996407039,3.59396849,25771.0,25770.0,0.03920743]
[1693996407234,3.59528849,25771.0,25770.0,0.03920743]
[1693996407483,3.59558849,25771.0,25770.0,0.03920743]
[1693996407685,3.59582849,25771.0,25770.0,0.03920743]
[1693996407915,3.59612849,25771.0,25770.0,0.03920743]
[1693996408088,3.59696849,25771.0,25770.0,0.03920743]
[1693996408231,3.59180849,25771.0,25770.0,0.03920743]
[1693996408442,3.59360849,25771.0,25770.0,0.03920743]
[1693996408667,3.59378849,25771.0,25770.0,0.03920743]
[1693996408867,3.59528849,25771.0,25770.0,0.03920743]
[1693996409072,3.59516849,25771.0,25770.0,0.03920743]
[1693996409316,3.59534849,25771.0,25770.0,0.03920743]
[1693996409514,3.59558849,25771.0,25770.0,0.03920743]
[1693996409742,3.59462849,25771.0,25770.0,0.03920743]
[1693996409942,3.59420849,25771.0,25770.0,0.03920743]
[1693996410219,3.59444849,25771.0,25770.0,0.03920743]
[1693996410415,3.59648849,25771.0,25770.0,0.03920743]
[1693996410622,3.59642849,25771.0,25770.0,0.03920743]
[1693996410818,3.59666849,25771.0,25770.0,0.03920743]
[1693996411051,3.59696849,25771.0,25770.0,0.03920743]
[1693996411246,3.59720849,25771.0,25770.0,0.03920743]
[1693996411632,3.59732849,25771.0,25770.0,0.03920743]
[1693996411831,3.59642849,25771.0,25770.0,0.03920743]
[1693996412107,3.59666849,25771.0,25770.0,0.03920743]
[1693996412336,3.59684849,25771.0,25770.0,0.03920743]
[1693996412542,3.59612849,25771.0,25770.0,0.03920743]
[1693996412786,3.59636849,25771.0,25770.0,0.03920743]
[1693996413004,3.59660849,25771.0,25770.0,0.03920743]
[1693996413220,3.59684849,25771.0,25770.0,0.03920743]
[1693996413428,3.59708849,25771.0,25770.0,0.03920743]
[1693996413631,3.59732849,25771.0,25770.0,0.03920743]
[1693996413833,3.59762849,25771.0,25770.0,0.03920743]
[1693996414150,3.59816849,25771.0,25770.0,0.03920743]
[1693996414556,3.59900849,25771.0,25770.0,0.03920743]
[1693996414801,3.59978849,25771.0,25770.0,0.03920743]
[1693996414977,3.59312849,25771.0,25770.0,0.03920743]
[1693996415177,3.52598849,25771.0,25770.0,0.03920743]
[1693996416411,3.59642849,25771.0,25770.0,0.03920743]
[1693996416622,3.52598849,25771.0,25770.0,0.03920743]
[1693996417446,3.59558849,25771.0,25770.0,0.03920743]
[1693996417607,3.59492849,25771.0,25770.0,0.03920743]
[1693996417810,3.59588849,25771.0,25770.0,0.03920743]
[1693996418231,3.59162849,25771.0,25770.0,0.03920743]
[1693996418435,3.59606849,25771.0,25770.0,0.03920743]
[1693996418884,3.59612849,25771.0,25770.0,0.03920743]
[1693996419063,3.59630849,25771.0,25770.0,0.03920743]
[1693996419203,3.59636849,25771.0,25770.0,0.03920743]
[1693996419403,3.59552849,25771.0,25770.0,0.03920743]
[1693996419610,3.59834849,25771.0,25770.0,0.03920743]
[1693996419823,3.59780849,25771.0,25770.0,0.03920743]
[1693996420024,3.59750849,25771.0,25770.0,0.03920743]
[1693996420256,3.59780849,25771.0,25770.0,0.03920743]
[1693996420476,3.59756849,25771.0,25770.0,0.03920743]
[1693996420702,3.59822849,25771.0,25770.0,0.03920743]
[1693996421045,3.59846849,25771.0,25770.0,0.03920743]
[1693996421254,3.59852849,25771.0,25770.0,0.03920743]
[1693996421791,3.59864849,25771.0,25770.0,0.03920743]
[1693996422004,3.59846849,25771.0,25770.0,0.03920743]
[1693996422154,3.59870849,25771.0,25770.0,0.03920743]
[1693996422512,3.59894849,25771.0,25770.0,0.03920743]
[1693996422714,3.60098849,25771.0,25770.0,0.03920743]
[1693996423021,3.60110849,25771.0,25770.0,0.03920743]
[1693996423157,3.60020849,25771.0,25770.0,0.03920743]
[1693996423363,3.60038849,25771.0,25770.0,0.03920743]
[1693996423564,3.59996849,25771.0,25770.0,0.03920743]
[1693996423770,3.60014849,25771.0,25770.0,0.03920743]
[1693996424127,3.60116849,25771.0,25770.0,0.03920743]
[1693996424265,3.60050849,25771.0,25770.0,0.03920743]
[1693996424466,3.60056849,25771.0,25770.0,0.03920743]
[1693996424885,3.60062849,25771.0,25770.0,0.03920743]
[1693996425085,3.60056849,25771.0,25770.0,0.03920743]
[1693996425286,3.60188849,25771.0,25770.0,0.03920743]
[1693996425490,3.59936849,25771.0,25770.0,0.03920743]
[1693996425694,3.60218849,25771.0,25770.0,0.03920743]
[1693996425913,3.60206849,25771.0,25770.0,0.03920743]
[1693996426114,3.59978849,25771.0,25770.0,0.03920743]
[1693996426342,3.60194849,25771.0,25770.0,0.03920743]
[1693996426539,3.59942849,25771.0,25770.0,0.03920743]
[1693996426738,3.60194849,25771.0,25770.0,0.03920743]
[1693996426944,3.60032849,25771.0,25770.0,0.03920743]
[1693996427142,3.60008849,25771.0,25770.0,0.03920743]
[1693996427362,3.60014849,25771.0,25770.0,0.03920743]
[1693996427592,3.60026849,25771.0,25770.0,0.03920743]
[1693996427767,3.60014849,25771.0,25770.0,0.03920743]
[1693996427993,3.60194849,25771.0,25770.0,0.03920743]
[1693996428108,3.60068849,25771.0,25770.0,0.03920743]
[1693996428323,3.60194849,25771.0,25770.0,0.03920743]
[1693996428528,3.60092849,25771.0,25770.0,0.03920743]
[1693996428734,3.60050849,25771.0,25770.0,0.03920743]
[1693996428946,3.60092849,25771.0,25770.0,0.03920743]
[1693996429142,3.60104849,25771.0,25770.0,0.03920743]
[1693996429390,3.60212849,25771.0,25770.0,0.03920743]
[1693996429595,3.60266849,25771.0,25770.0,0.03920743]
[1693996429795,3.60284849,25771.0,25770.0,0.03920743]
[1693996429951,3.60332849,25771.0,25770.0,0.03920743]
[1693996430151,3.60308849,25771.0,25770.0,0.03920743]
[1693996430353,3.60260849,25771.0,25770.0,0.03920743]
[1693996430550,3.60266849,25771.0,25770.0,0.03920743]
[1693996430759,3.60260849,25771.0,25770.0,0.03920743]
[1693996430951,3.60356849,25771.0,25770.0,0.03920743]
[1693996431153,3.60584849,25771.0,25770.0,0.03920743]
[1693996431373,3.60590849,25771.0,25770.0,0.03920743]
[1693996431649,3.60494849,25771.0,25770.0,0.03920743]
[1693996431900,3.60548849,25771.0,25770.0,0.03920743]
[1693996432102,3.60386849,25771.0,25770.0,0.03920743]
[1693996432296,3.60428849,25771.0,25770.0,0.03920743]
[1693996432499,3.60482849,25771.0,25770.0,0.03920743]
[1693996432840,3.60494849,25771.0,25770.0,0.03920743]
[1693996433184,3.60452849,25771.0,25770.0,0.03920743]
[1693996433359,3.61052849,25771.0,25770.0,0.03920743]
[1693996433537,3.61022849,25771.0,25770.0,0.03920743]
[1693996433740,3.61028849,25771.0,25770.0,0.03920743]
[1693996433998,3.60998849,25771.0,25770.0,0.03920743]
[1693996434187,3.60788849,25771.0,25770.0,0.03920743]
[1693996434401,3.60644849,25771.0,25770.0,0.03920743]
[1693996434610,3.60638849,25771.0,25770.0,0.03920743]
[1693996434804,3.60734849,25771.0,25770.0,0.03920743]
[1693996435033,3.60560849,25771.0,25770.0,0.03920743]
[1693996435211,3.60746849,25771.0,25770.0,0.03920743]
[1693996435367,3.60860849,25771.0,25770.0,0.03920743]
[1693996435707,3.60764849,25771.0,25770.0,0.03920743]
[1693996435907,3.60674849,25771.0,25770.0,0.03920743]
[1693996436107,3.60662849,25771.0,25770.0,0.03920743]
[1693996436311,3.61004849,25771.0,25770.0,0.03920743]
[1693996436513,3.60992849,25771.0,25770.0,0.03920743]